{"text_format":"1","workbook":"xlsx","n_sheets":3,"sheets":["110-30","Instructions","Sheet1"],"not_rendered":{"charts":0,"images":0,"macros":1,"external_links":1,"defined_names":15,"comments":1,"pivot_tables":0},"unopened":[],"bounds":{"document_bytes":16777216,"sheet_cells":100000,"rows_first":2000,"rows_last":500,"rows_between":2000,"halvings":0,"cell_chars":16384,"cell_head_chars":4096},"cells_cut":0,"cells_raw":0,"read":"whole","date_system":"1900"}

{"sheet":"110-30","index":0,"n_rows":105,"n_cols":29,"rows_kept":105,"cut":false,"hidden":false,"merged":[[75,22,77,23],[75,14,77,14],[99,18,101,18],[3,2,3,17],[99,19,101,20],[99,21,101,21],[99,22,101,23],[99,25,101,25],[100,3,100,5],[100,16,100,17],[101,3,101,5],[101,16,101,17],[6,0,6,23],[7,0,7,23],[81,0,83,1],[84,0,86,1],[87,0,89,1],[90,0,92,1],[93,0,95,1],[96,0,98,1],[42,0,42,2],[77,3,77,5],[75,2,75,5],[73,2,74,5],[99,0,101,1],[99,2,99,5],[99,6,101,6],[99,7,101,7],[99,8,101,10],[99,11,101,13],[99,14,101,14],[99,16,99,17],[93,2,93,5],[94,3,94,5],[93,16,93,17],[73,8,74,10],[45,9,45,14],[43,5,43,6],[45,5,45,6],[43,0,43,2],[45,0,45,2],[43,21,43,22],[45,21,45,22],[73,6,74,6],[43,15,43,17],[43,18,43,20],[65,0,69,23],[70,0,70,23],[61,21,61,22],[46,18,46,20],[73,14,74,14],[73,11,74,13],[45,18,45,20],[50,4,50,21],[55,1,56,22],[61,9,61,19],[57,1,57,5],[57,9,57,19],[57,21,57,22],[96,25,98,25],[97,16,97,17],[98,16,98,17],[96,18,98,18],[96,21,98,21],[96,22,98,23],[81,21,83,21],[84,18,86,18],[89,16,89,17],[87,16,87,17],[84,19,86,20],[84,22,86,23],[84,21,86,21],[86,16,86,17],[85,16,85,17],[90,22,92,23],[96,19,98,20],[87,19,89,20],[96,16,96,17],[93,19,95,20],[93,25,95,25],[91,16,91,17],[92,16,92,17],[87,22,89,23],[92,3,92,5],[90,2,90,5],[89,3,89,5],[87,6,89,6],[87,2,87,5],[82,3,82,5],[90,19,92,20],[75,21,77,21],[78,14,80,14],[90,8,92,10],[90,6,92,6],[84,7,86,7],[84,8,86,10],[90,7,92,7],[80,3,80,5],[75,8,77,10],[83,3,83,5],[81,2,81,5],[88,3,88,5],[91,3,91,5],[79,3,79,5],[75,6,77,6],[75,11,77,13],[78,2,78,5],[1,21,1,22],[3,21,3,22],[1,3,1,17],[2,3,2,17],[73,19,74,20],[73,15,74,17],[78,16,78,17],[81,18,83,18],[78,11,80,13],[78,21,80,21],[78,18,80,18],[73,21,73,22],[73,18,74,18],[81,14,83,14],[81,11,83,13],[81,8,83,10],[81,6,83,6],[81,7,83,7],[20,21,20,22],[25,21,25,22],[72,0,72,23],[75,0,77,1],[78,8,80,10],[78,0,80,1],[103,22,103,23],[93,6,95,6],[95,16,95,17],[94,16,94,17],[42,21,42,22],[44,0,44,2],[61,1,61,5],[78,6,80,6],[73,0,74,1],[42,18,42,20],[45,7,45,8],[42,9,42,14],[43,9,43,14],[75,7,77,7],[78,7,80,7],[75,18,77,18],[44,15,44,17],[76,3,76,5],[103,19,103,20],[87,11,89,13],[84,11,86,13],[90,14,92,14],[87,7,89,7],[87,8,89,10],[103,11,103,13],[103,15,103,17],[95,3,95,5],[97,3,97,5],[98,3,98,5],[84,2,84,5],[85,3,85,5],[96,7,98,7],[96,8,98,10],[96,2,96,5],[86,3,86,5],[96,11,98,13],[96,14,98,14],[93,11,95,13],[93,14,95,14],[93,7,95,7],[87,14,89,14],[84,14,86,14],[84,6,86,6],[96,6,98,6],[90,11,92,13],[84,16,84,17],[88,16,88,17],[93,8,95,10],[79,16,79,17],[81,16,81,17],[81,19,83,20],[90,18,92,18],[93,18,95,18],[93,21,95,21],[93,22,95,23],[87,18,89,18],[90,16,90,17],[20,25,21,25],[30,25,31,25],[42,7,42,8],[43,7,43,8],[81,22,83,23],[90,21,92,21],[87,21,89,21],[82,16,82,17],[83,16,83,17],[44,7,44,8],[73,7,74,7],[78,19,80,20],[78,22,80,23],[80,16,80,17],[75,19,77,20],[75,25,77,25],[75,16,75,17],[76,16,76,17],[77,16,77,17],[78,25,80,25],[81,25,83,25],[84,25,86,25],[87,25,89,25],[90,25,92,25],[17,0,17,23],[41,0,41,23],[23,21,23,22],[24,21,24,22],[31,1,32,22],[38,1,38,22],[40,1,40,22],[39,1,39,22],[4,3,4,17],[10,21,10,22],[13,21,13,22],[22,21,22,22],[10,1,10,4],[13,1,13,4],[10,6,10,12],[13,6,13,12],[13,14,13,19],[15,1,15,12],[15,14,15,22],[10,14,10,19],[48,4,48,6],[53,0,53,23],[26,21,26,22],[20,1,21,3],[29,1,30,4],[18,1,18,22],[21,21,21,22],[42,5,42,6],[42,15,42,17],[34,1,34,6],[34,20,34,22],[34,8,34,18],[45,15,45,17],[44,18,44,20],[46,21,46,22],[27,21,27,22],[44,5,44,6],[44,21,44,22],[44,9,44,14]]}
[]
["Form 110-30 ",null,null,"COUNTY OF ALAMEDA",null,null,null,null,null,null,null,null,null,null,null,null,null,null,null,null,"Business Unit:",null,null,null,null,null,"protection password: \"aud2016\"",null,"effective date"]
["Revised 1/2020",null,null,"AUDITOR-CONTROLLER AGENCY",null,null,null,null,null,null,null,null,null,null,null,null,null,null,null,null,null,null,null,null,null,null,"new mileage rate",null,"2021-01-01"]
[null,null,"2020 CONFERENCE/TRAINING TRAVEL EXPENSE REIMBURSEMENT CLAIM",null,null,null,null,null,null,null,null,null,null,null,null,null,null,null,null,null,"Voucher #:",null,null,null,null,null,"Current mileage rate",0.57499999999999996,"2020-01-01"]
[null,null,null,"(For Training or Conferences, do not use for Daily Mileage)",null,null,null,null,null,null,null,null,null,null,null,null,null,null,null,null,null,null,null,null,null,null,"Prior mileage rate ",0.57999999999999996,"2019-01-01"]
[null,null,null,null,null,null,null,null,null,null,null,null,null,null,null,null,null,null,null,null,null,null,null,null,null,null,"Prior mileage rate ",0.54500000000000004,"2018-01-01"]
["Only expenses incurred in current calendar year (January 1 - December 31) may be submitted on this form.",null,null,null,null,null,null,null,null,null,null,null,null,null,null,null,null,null,null,null,null,null,null,null,null,null,"Prior mileage rate ",0.53500000000000003,"2017-01-01"]
["(April 15th is the deadline for submitting any expenses incurred in previous calendar year.)",null,null,null,null,null,null,null,null,null,null,null,null,null,null,null,null,null,null,null,null,null,null,null,null,null,"Prior mileage rate ",0.54,"2016-01-01"]
[null,"Type or Print"]
[]
[]
[null,"First Name",null,null,null,null,"Last Name",null,null,null,null,null,null,null,"ALCOLINK Supplier ID",null,null,null,null,null,null,"Employee ID"]
[]
[]
[null,"Department Name",null,null,null,null,null,"Department Liaison",null,null,null,null,null,null,"Liaison Phone #",null,null,null,null,null,null,"QIC"]
[]
[null,"Worksite Address",null,null,null,null,null,null,null,null,null,null,null,null,"Home Address"]
["EXPENSE SUMMARY"]
[null,"Non-shaded areas in this section are populated as data and is entered in the \"Travel Expense Detail\" on page 2.  See instructions."]
[]
[null,"MILEAGE ALLOWANCE",null,null,{"$f":"SUMIFS(L76:L103,A76:A103,\">=\" & Curr_Mile_Eff_Date,A76:A103,\"<\"&AC3)","v":0},"Net miles at 57.5 cents per mile effective January 1, 2020",null,null,null,null,null,null,null,null,null,null,null,null,null,null,null,{"$f":"E21*Curr_mileage_rate","v":0},null,null,null,{"$f":"IF(SUM(E21:E22)-L104<>0,\"Total mileage not equal to total on Travel Detail Expense page\",\"\")","v":""}]
[]
[null,"PARKING, BRIDGE TOLLS, GAS, & PUBLIC TRANSIT",null,null,null,null,null,null,null,null,null,null,null,null,null,null,null,null,null,null,null,{"$f":"O104","v":0}]
[null,"MEALS  ",null,null,null,null,null,null,null,null,null,null,null,null,null,null,null,null,null,null,null,{"$f":"+P104","v":0}]
[null,"LODGING ",null,null,null,null,null,null,null,null,null,null,null,null,null,null,null,null,null,null,null,{"$f":"S104","v":0}]
[null,"CAR RENTAL AND OTHER TRAVEL RELATED EXPENSES",null,null,null,null,null,null,null,null,null,null,null,null,null,null,null,null,null,null,null,{"$f":"+T104","v":0}]
[null,"OTHER EXPENSES",null,null,null,null,null,null,null,null,null,null,null,null,null,null,null,null,null,null,null,{"$f":"+W104","v":0}]
[null,"TOTAL",null,null,null,null,null,null,null,null,null,null,null,null,null,null,null,null,null,null,null,{"$f":"SUM(V21:V27)","v":0}]
[]
[null,"CLAIMANT'S CERTIFICATION"]
[null,null,null,null,null,null,null,null,null,null,null,null,null,null,null,null,null,null,null,null,null,null,null,null,null,{"$f":"IF(AND(V28<30,V28<>0,AB32=FALSE),\"Total claim is less than $30. Claim will be denied unless it is the final claim for the fiscal year.\",\"\")","v":""},"Out of state travel?",false]
[null,"I certify that I incurred the expenses detailed herein in accordance with the relevant provisions of Chapter 3.36 of the Alameda County Administrative Code; and that the said details are true and correct to the best of my knowledge.",null,null,null,null,null,null,null,null,null,null,null,null,null,null,null,null,null,null,null,null,null,null,null,null,"Final invoice?",false]
[]
[null,null,null,null,null,null,null,null,null,null,null,null,null,null,null,null,null,null,null,null,null,null,null,null,null,{"$f":"IF(Out_of_state_travel?=TRUE,\"Attach Form 110-25 Out of State Travel (OOST) Authorization Request\",\"\")","v":""}]
[]
[null,"CLAIMANT'S SIGNATURE",null,null,null,null,null,null,"PRINTED NAME",null,null,null,null,null,null,null,null,null,null,null,"DATE"]
[]
[]
[]
[]
[]
["ACCOUNTING INFORMATION"]
["Business Unit",null,null,"Account","Fund","Department",null,"Program",null,"Sub-Class",null,null,null,null,null,"Budget Yr",null,null,"Project",null,null,"Amount"]
[null,null,null,610193,null,null,null,null,null,null,null,null,null,null,null,null,null,null,null,null,null,{"$f":"SUM(V21:W22)","v":0}]
[null,null,null,610211,null,null,null,null,null,null,null,null,null,null,null,null,null,null,null,null,null,{"$f":"SUM(V23:W26)","v":0}]
[null,null,null,610461,null,null,null,null,null,null,null,null,null,null,null,null,null,null,null,null,null,{"$f":"V27","v":0}]
[null,null,null,null,null,null,null,null,null,null,null,null,null,null,null,null,null,null,"Total",null,null,{"$f":"SUM(V44:W46)","v":0}]
[]
[null,null,null,"Invoice #:",null,null,null,null,null,null,null,null,"Invoice Type:",null,null,null,"PEXP",null,null,null,null,"Payment Handling:","DP"]
[]
[null,"Payment Comments:"]
[]
[]
["AUTHORIZED APPROVER CERTIFICATION"]
[]
[null,"I certify that the expenses claimed herein were required in accordance with the relevant provisions of Chapter 3.36 of the Alameda County Administrative Code."]
[]
[]
[null,"SUPERVISOR/FINANCE DEPARTMENT SIGNATURE",null,null,null,null,null,null,null,"PRINTED NAME",null,null,null,null,null,null,null,null,null,null,null,"DATE"]
[]
[]
[]
[null,"AUTHORIZED APPROVER SIGNATURE",null,null,null,null,null,null,null,"PRINTED NAME",null,null,null,null,null,null,null,null,null,null,null,"DATE"]
[]
["Form 110-30"]
["It is essential to complete the “First/Last Contact?” column.  If the trip originated or ended at your place of residence, indicate “Y.” If \"Y,\" record the gross trip miles (actual driving distance) and regular commute miles (the driving distance between your home and your regularly assigned worksite). The County only reimburses mileage in excess of the regular commute. If the gross mileage is greater than the regular commute mileage, compute the difference as the net allowable miles. If the gross trip mileage to the first or last point of business contact of the day is less than the regular commute mileage, you may not claim mileage reimbursement for that trip. If the trip included both the first and last point of business contact in the day, the round-trip commute miles must be used to determine the net allowable miles.  Please consider using a County Motor Pool Vehicle and/or Clipper Card to avoid incurring future transit-related expenses and having to file reimbursement claims.  For Motor Pool information visit http://alcoweb.acgov.org/gsa/mv/reserve.htm;  for Clipper Card go to http://alcoweb.acgov.org/gsa/bta."]
[]
[]
[]
[]
[]
[]
["TRAVEL EXPENSE DETAIL",null,null,null,null,null,null,null,null,null,null,null,null,null,null,null,null,null,null,null,null,null,null,null,"`"]
["DATE ",null,"PURPOSE OF TRIP \nORIGIN/DESTINATION",null,null,null,"FIRST/LAST CONTACT? \n(Y/N)","GROSS TRIP MILES","LESS REGULAR COMMUTE MILES",null,null,"NET ALLOW MILES",null,null,"PARKING, BRIDGE, GAS, & PUBLIC TRANSIT","MEAL COSTS",null,null,"LODGING EXPENSES","CAR RENTAL & OTHER TRAVEL RELATED EXPENSES",null,"OTHER EXPENSES "]
[null,null,null,null,null,null,null,null,null,null,null,null,null,null,null,null,null,null,null,null,null,"ITEM","COST"]
[null,null,null,null,null,null,null,null,null,null,null,{"$f":"IF(H76=\"\",\"\",IF(+H76-I76<0,0,+H76-I76))","v":""},null,null,null,"B",null,null,null,null,null,null,null,null,null,{"$f":"IF(AND(G76=\"Y\",I76=\"\"),\"This trip originated or ended at your place of residence, please enter commute miles.\",IF(AND(G76<>\"Y\",I76<>\"\"),\"This trip did not originate or end at your place of residence, no need to enter commute miles\",\" \"))","v":" "},"First/Last Contact"]
[null,null,"FROM:",null,null,null,null,null,null,null,null,null,null,null,null,"L",null,null,null,null,null,null,null,null,null,null,"Y"]
[null,null,"TO:",null,null,null,null,null,null,null,null,null,null,null,null,"D",null,null,null,null,null,null,null,null,null,null,"N"]
[null,null,null,null,null,null,null,null,null,null,null,{"$f":"IF(H79=\"\",\"\",IF(+H79-I79<0,0,+H79-I79))","v":""},null,null,null,"B",null,null,null,null,null,null,null,null,null,{"$f":"IF(AND(G79=\"Y\",I79=\"\"),\"This trip originated or ended at your place of residence, please enter commute miles.\",IF(AND(G79<>\"Y\",I79<>\"\"),\"This trip did not originate or end at your place of residence, no need to enter commute miles\",\" \"))","v":" "}]
[null,null,"FROM:",null,null,null,null,null,null,null,null,null,null,null,null,"L"]
[null,null,"TO:",null,null,null,null,null,null,null,null,null,null,null,null,"D"]
[null,null,null,null,null,null,null,null,null,null,null,{"$f":"IF(H82=\"\",\"\",IF(+H82-I82<0,0,+H82-I82))","v":""},null,null,null,"B",null,null,null,null,null,null,null,null,null,{"$f":"IF(AND(G82=\"Y\",I82=\"\"),\"This trip originated or ended at your place of residence, please enter commute miles.\",IF(AND(G82<>\"Y\",I82<>\"\"),\"This trip did not originate or end at your place of residence, no need to enter commute miles\",\" \"))","v":" "}]
[null,null,"FROM:",null,null,null,null,null,null,null,null,null,null,null,null,"L"]
[null,null,"TO:",null,null,null,null,null,null,null,null,null,null,null,null,"D"]
[null,null,null,null,null,null,null,null,null,null,null,{"$f":"IF(H85=\"\",\"\",IF(+H85-I85<0,0,+H85-I85))","v":""},null,null,null,"B",null,null,null,null,null,null,null,null,null,{"$f":"IF(AND(G85=\"Y\",I85=\"\"),\"This trip originated or ended at your place of residence, please enter commute miles.\",IF(AND(G85<>\"Y\",I85<>\"\"),\"This trip did not originate or end at your place of residence, no need to enter commute miles\",\" \"))","v":" "}]
[null,null,"FROM:",null,null,null,null,null,null,null,null,null,null,null,null,"L"]
[null,null,"TO:",null,null,null,null,null,null,null,null,null,null,null,null,"D"]
[null,null,null,null,null,null,null,null,null,null,null,{"$f":"IF(H88=\"\",\"\",IF(+H88-I88<0,0,+H88-I88))","v":""},null,null,null,"B",null,null,null,null,null,null,null,null,null,{"$f":"IF(AND(G88=\"Y\",I88=\"\"),\"This trip originated or ended at your place of residence, please enter commute miles.\",IF(AND(G88<>\"Y\",I88<>\"\"),\"This trip did not originate or end at your place of residence, no need to enter commute miles\",\" \"))","v":" "}]
[null,null,"FROM:",null,null,null,null,null,null,null,null,null,null,null,null,"L"]
[null,null,"TO:",null,null,null,null,null,null,null,null,null,null,null,null,"D"]
[null,null,null,null,null,null,null,null,null,null,null,{"$f":"IF(H91=\"\",\"\",IF(+H91-I91<0,0,+H91-I91))","v":""},null,null,null,"B",null,null,null,null,null,null,null,null,null,{"$f":"IF(AND(G91=\"Y\",I91=\"\"),\"This trip originated or ended at your place of residence, please enter commute miles.\",IF(AND(G91<>\"Y\",I91<>\"\"),\"This trip did not originate or end at your place of residence, no need to enter commute miles\",\" \"))","v":" "}]
[null,null,"FROM:",null,null,null,null,null,null,null,null,null,null,null,null,"L"]
[null,null,"TO:",null,null,null,null,null,null,null,null,null,null,null,null,"D"]
[null,null,null,null,null,null,null,null,null,null,null,{"$f":"IF(H94=\"\",\"\",IF(+H94-I94<0,0,+H94-I94))","v":""},null,null,null,"B",null,null,null,null,null,null,null,null,null,{"$f":"IF(AND(G94=\"Y\",I94=\"\"),\"This trip originated or ended at your place of residence, please enter commute miles.\",IF(AND(G94<>\"Y\",I94<>\"\"),\"This trip did not originate or end at your place of residence, no need to enter commute miles\",\" \"))","v":" "}]
[null,null,"FROM:",null,null,null,null,null,null,null,null,null,null,null,null,"L"]
[null,null,"TO:",null,null,null,null,null,null,null,null,null,null,null,null,"D"]
[null,null,null,null,null,null,null,null,null,null,null,{"$f":"IF(H97=\"\",\"\",IF(+H97-I97<0,0,+H97-I97))","v":""},null,null,null,"B",null,null,null,null,null,null,null,null,null,{"$f":"IF(AND(G97=\"Y\",I97=\"\"),\"This trip originated or ended at your place of residence, please enter commute miles.\",IF(AND(G97<>\"Y\",I97<>\"\"),\"This trip did not originate or end at your place of residence, no need to enter commute miles\",\" \"))","v":" "}]
[null,null,"FROM:",null,null,null,null,null,null,null,null,null,null,null,null,"L"]
[null,null,"TO:",null,null,null,null,null,null,null,null,null,null,null,null,"D"]
[null,null,null,null,null,null,null,null,null,null,null,{"$f":"IF(H100=\"\",\"\",IF(+H100-I100<0,0,+H100-I100))","v":""},null,null,null,"B",null,null,null,null,null,null,null,null,null,{"$f":"IF(AND(G100=\"Y\",I100=\"\"),\"This trip originated or ended at your place of residence, please enter commute miles.\",IF(AND(G100<>\"Y\",I100<>\"\"),\"This trip did not originate or end at your place of residence, no need to enter commute miles\",\" \"))","v":" "}]
[null,null,"FROM:",null,null,null,null,null,null,null,null,null,null,null,null,"L"]
[null,null,"TO:",null,null,null,null,null,null,null,null,null,null,null,null,"D"]
[]
["                                                                                                                                                                                                               ",null,null,null,null,null,null,null,"TOTALS:",null,null,{"$f":"SUM(L76:L103)","v":0},null,null,{"$f":"SUM(O76:O103)","v":0},{"$f":"SUM(Q76:Q103)","v":0},null,null,{"$f":"SUM(S76:S103)","v":0},{"$f":"SUM(T76:U103)","v":0},null,null,{"$f":"SUM(W76:W103)","v":0}]
["           "]

{"sheet":"Instructions","index":1,"n_rows":9,"n_cols":1,"rows_kept":9,"cut":false,"hidden":false,"merged":[]}
[]
["DISCLAIMERS: If you are completing the PDF version of this form, please note that the Net Allowable Miles from Page 2 does not carry over to the Mileage Allowance on Page 1.  Please enter the total Net Allowable Miles in the Mileage Allowance Box, multiply by the applicable mileage rate and enter total amount for mileage rate.\n"]
["Who May Use This Form\n- County employees with conference/training-related travel expenses, may use Form 110-30 (Personal Expense Claim) for associated transportation, lodging, meals, and communication charges pre-authorized by the department head/designee. Lodging is reimburseable if the conference is outside Alameda County and the county of the employee's residence and the time of the conference and the distance traveled justify the overnight stay. Airfare arrangements must be made in accordance with County policy and only with approved travel agents.\n- Registration fees are to be submitted on Form 110-59 (Prepaid Tuition and Registration Fee Claim).                                              \n- County employees with non-conference/training-related travel expenses, must use Form 110-58 (Travel Expense Reimbursement).\n- Non-County employees must use Form 110-64 (Non-County Employee Expense Claim)."]
["Prohibited Uses of This Form: Non-reimburseable expenses include but are not limited to: internet fees due to telecommuting;  prepayment and upgrades from standard room rates; office and cleaning supplies and other sundry items; meals in conjunction with a half-day training, County Managers Affiliation, social, retirement, political events, or included in registration or airline fares; and food/beverages for staff performing their normal functions or County meetings. For additional information concerning reimbursement for meals, please see the Disbursement Manual of Accounting Policies and Procedures (MAPP) or contact your department liaison. "]
["Purpose of Trip Origin/Destination: Enter the name of the conference, training or seminar and the address in the Purpose of Trip/Origin/Destination column. If the expense was for BART, bus passes, FasTrak toll charges, single-metered parking, bridge tolls, multi space pay-and-display metered parking, unmetered parking, or another form of transportation, designate it on the form by writing the expense type, e.g., BART.\n"]
["Mileage: Use the mileage rate in effect at the time of travel (not when the claim is submitted).  If the claim includes mileage, the employee must complete the First/Last Contact column.  If the trip started or ended at the employee's place of residence, the answer is \"yes\" and the employee must enter commute mileage, i.e., the driving distance between home and the regularly assigned worksite, in the \"less commute miles\" column.  The Net Allowable Miles is equal to the gross trip miles minus the commute miles.  The County only reimburses employees for mileage in excess of their regular commute.  If the gross mileage is greater than the regular commute mileage, compute the difference as the net allowable miles.  If the gross mileage is less than or equal to the regular commute miles, the employee may not claim reimbursement for mileage for that trip.\n"]
["See examples on the next tab for more information.  Please consider using a County Motor Pool Vehicle and/or Clipper Card to avoid incurring future transit-related expenses and having to file reimbursement claims.  For Motor Pool information visit http://alcoweb.acgov.org/gsa/mv/reserve.htm;  for Clipper Card information go to http://alcoweb.acgov.org/gsa/bta.\n"]
["Travel Expense Detail and Supporting Documents:  Original itemized receipts are required for gas, unmetered parking, lodging and other forms of transportation.   Original, detailed receipts showing items purchased and tip, if applicable, are required for meal reimbursement unless claiming the flat rate.  The current flat rate for the actual costs of meals is $11 for breakfast, $16 for lunch, $29 for dinner. This is not a per diem; the meal must be purchased and reasonable in cost to be reimbursed.  Photocopies or faxed copies of receipts are not accepted. All receipts must be legible and on or attached to an 8 1/2 x 11 sheet of paper. Lodging and transportation charges should be supported by the original itemized hotel bill and any other applicable documentation.  For conferences and seminars, attach a copy of the program announcement, schedule of events and registration forms showing conference dates, times, location, costs and any lodging or meals included in the registration fee. Please list the travel expense detail and associated receipts in chronological order. For out-of-state travel, attach a copy of the County Administration Office Out-of-State Travel Form. The Auditor's Office may require additional documents to support the claim.  \n"]
["Claim Submittal: Claims must be submitted in the calendar year they are incurred, no later than April 15th of the following calendar year. Do not submit a claim for less than $30 unless it is the last claim of the year. Do not submit multiple claims for expenses incurred in the same month. If claims for multiple months are submitted, use a separate form for each month, submit them together, and attach a calculator tape showing the total reimbursable amount.  All claims require the employee identification number and the last five digits of the employee's Social Security number.  Do not use red ink except to designate the business unit.  Use only yellow highlighters.  Information must be complete, legible, and in chronological order.   Submit the completed and signed form, with supporting documents, to the department finance unit who will complete the accounting information section and create an ALCOLINK voucher.  After the claim is reviewed for accuracy and MAPP compliance, approved and signed by the departmental approver, the department forwards the claim and supporting documents to the Auditor's Office, QIC 20111, Attention: Expense Claims."]

{"sheet":"Sheet1","index":2,"n_rows":17,"n_cols":26,"rows_kept":17,"cut":false,"hidden":false,"merged":[[14,25,16,25],[15,3,15,5],[16,3,16,5],[14,14,16,14],[14,21,16,21],[14,22,16,23],[14,11,16,13],[14,16,14,17],[14,18,16,18],[14,19,16,20],[15,16,15,17],[16,16,16,17],[14,0,16,1],[14,2,14,5],[14,6,16,6],[14,7,16,7],[14,8,16,10],[11,22,13,23],[11,25,13,25],[12,3,12,5],[13,3,13,5],[11,11,13,13],[11,14,13,14],[11,21,13,21],[11,16,11,17],[11,18,13,18],[11,19,13,20],[12,16,12,17],[13,16,13,17],[8,25,10,25],[9,3,9,5],[10,3,10,5],[8,14,10,14],[8,21,10,21],[8,22,10,23],[8,11,10,13],[8,16,8,17],[8,18,10,18],[8,19,10,20],[9,16,9,17],[10,16,10,17],[11,0,13,1],[11,2,11,5],[11,6,13,6],[11,7,13,7],[11,8,13,10],[8,0,10,1],[8,2,8,5],[8,6,10,6],[8,7,10,7],[8,8,10,10],[5,22,7,23],[5,25,7,25],[6,3,6,5],[7,3,7,5],[5,11,7,13],[5,14,7,14],[5,21,7,21],[5,16,5,17],[5,18,7,18],[5,19,7,20],[6,16,6,17],[7,16,7,17],[2,25,4,25],[3,3,3,5],[4,3,4,5],[2,14,4,14],[2,21,4,21],[2,22,4,23],[2,11,4,13],[2,16,2,17],[2,18,4,18],[2,19,4,20],[3,16,3,17],[4,16,4,17],[5,0,7,1],[5,2,5,5],[5,6,7,6],[5,7,7,7],[5,8,7,10],[2,0,4,1],[2,2,2,5],[2,6,4,6],[2,7,4,7],[2,8,4,10]]}
[]
[]
[null,null,null,null,null,null,null,null,null,null,null,{"$f":"IF(H3=\"\",\"\",IF(+H3-I3<0,0,+H3-I3))","v":""},null,null,null,"B",null,null,null,null,null,null,null,null,null,{"$f":"IF(AND(G3=\"Y\",I3=\"\"),\"This trip originated or ended at your place of residence, please enter commute miles.\",IF(AND(G3<>\"Y\",I3<>\"\"),\"This trip did not originate or end at your place of residence, no need to enter commute miles\",\" \"))","v":" "}]
[null,null,"FROM:",null,null,null,null,null,null,null,null,null,null,null,null,"L"]
[null,null,"TO:",null,null,null,null,null,null,null,null,null,null,null,null,"D"]
[null,null,null,null,null,null,null,null,null,null,null,"",null,null,null,"B",null,null,null,null,null,null,null,null,null," "]
[null,null,"FROM:",null,null,null,null,null,null,null,null,null,null,null,null,"L"]
[null,null,"TO:",null,null,null,null,null,null,null,null,null,null,null,null,"D"]
[null,null,null,null,null,null,null,null,null,null,null,"",null,null,null,"B",null,null,null,null,null,null,null,null,null," "]
[null,null,"FROM:",null,null,null,null,null,null,null,null,null,null,null,null,"L"]
[null,null,"TO:",null,null,null,null,null,null,null,null,null,null,null,null,"D"]
[null,null,null,null,null,null,null,null,null,null,null,"",null,null,null,"B",null,null,null,null,null,null,null,null,null," "]
[null,null,"FROM:",null,null,null,null,null,null,null,null,null,null,null,null,"L"]
[null,null,"TO:",null,null,null,null,null,null,null,null,null,null,null,null,"D"]
[null,null,null,null,null,null,null,null,null,null,null,"",null,null,null,"B",null,null,null,null,null,null,null,null,null," "]
[null,null,"FROM:",null,null,null,null,null,null,null,null,null,null,null,null,"L"]
[null,null,"TO:",null,null,null,null,null,null,null,null,null,null,null,null,"D"]